fUSD/lending_fUSD_20260129
["ID","MTS","AMOUNT","RATE_DAILY","PERIOD"]
[403955216,1769691042681,-665.99209402,0.00016438,2]
[403955217,1769691042690,-665.99209402,0.00016438,2]
[403955218,1769691042699,-665.99209402,0.00016438,2]
[403955219,1769691042708,-665.99209402,0.00016438,2]
[403955220,1769691042717,-665.99209402,0.00016438,2]
[403955221,1769691042726,-665.99209402,0.00016438,2]
[403955222,1769691042735,-665.99209402,0.00016438,2]
[403955223,1769691042745,-665.99209402,0.00016438,2]
[403955224,1769691042754,-665.99209402,0.00016438,2]
[403955225,1769691042764,-665.99209402,0.00016438,2]
[403955226,1769691042773,-665.99209402,0.00016438,2]
[403955227,1769691042782,-665.99209402,0.00016438,2]
[403955229,1769691042791,-665.99209402,0.00016438,2]
[403955230,1769691042800,-665.99209402,0.00016438,2]
[403955232,1769691042809,-665.99209402,0.00016438,2]
[403955234,1769691042819,-665.99209402,0.00016438,2]
[403955236,1769691042828,-665.99209402,0.00016438,2]
[403955237,1769691042837,-665.99209402,0.00016438,2]
[403955238,1769691042846,-665.99209402,0.00016438,2]
[403955239,1769691042855,-665.99209402,0.00016438,2]
[403955240,1769691042865,-665.99209402,0.00016438,2]
[403955241,1769691042874,-665.99209402,0.00016438,2]
[403955242,1769691042885,-665.99209402,0.00016438,2]
[403955243,1769691042894,-665.99209402,0.00016438,2]
[403955244,1769691042904,-665.99209402,0.00016438,2]
[403955245,1769691042914,-665.99209402,0.00016438,2]
[403955246,1769691042924,-665.99209402,0.00016438,2]
[403955247,1769691042934,-665.99209402,0.00016438,2]
[403955248,1769691042944,-665.99209402,0.00016438,2]
[403955249,1769691042953,-665.99209402,0.00016438,2]
[403955250,1769691042963,-665.99209402,0.00016438,2]
[403955251,1769691042972,-665.99209402,0.00016438,2]
[403955252,1769691042982,-1787.05023676,0.00016438,2]
[403955253,1769691042991,-1787.05023676,0.00016438,2]
[403955254,1769691043001,-1787.05023676,0.00016438,2]
[403955255,1769691043010,-1787.05023676,0.00016438,2]
[403955256,1769691043019,-1787.05023676,0.00016438,2]
[403955257,1769691043028,-1787.05023676,0.00016438,2]
[403955258,1769691043038,-1787.05023676,0.00016438,2]
[403955259,1769691043047,-1787.05023676,0.00016438,2]
[403955260,1769691043056,-1787.05023676,0.00016438,2]
[403955261,1769691043066,-1787.05023676,0.00016438,2]
[403955262,1769691043076,-1787.05023676,0.00016438,2]
[403955263,1769691043085,-1787.05023676,0.00016438,2]
[403955264,1769691043094,-1787.05023676,0.00016438,2]
[403955265,1769691043105,-1787.05023676,0.00016438,2]
[403955266,1769691043114,-1787.05023676,0.00016438,2]
[403955267,1769691043123,-1787.05023676,0.00016438,2]
[403955268,1769691043133,-1787.05023676,0.00016438,2]
[403955269,1769691043143,-1787.05023676,0.00016438,2]
[403955270,1769691043152,-1787.05023676,0.00016438,2]
[403955271,1769691043163,-1787.05023676,0.00016438,2]
[403955272,1769691043173,-1787.05023676,0.00016438,2]
[403955273,1769691043183,-1787.05023676,0.00016438,2]
[403955274,1769691043193,-1787.05023676,0.00016438,2]
[403955275,1769691043203,-1787.05023676,0.00016438,2]
[403955276,1769691043213,-1787.05023676,0.00016438,2]
[403955277,1769691043223,-1787.05023676,0.00016438,2]
[403955278,1769691043233,-1787.05023668,0.00016438,2]
[403955279,1769691043243,-227.11,0.00016438,2]
[403955280,1769691043253,-800.0,0.00016438,2]
[403955281,1769691043262,-165.34,0.0001644,2]
[403955282,1769691043271,-165.34,0.0001644,2]
[403955283,1769691043280,-1259.68730294,0.00016488,2]
[403955284,1769691043290,-774.00968838,0.00016488,2]
[403955285,1769691043299,-161.0,0.000165,2]
[403955286,1769691043308,-161.0,0.000165,2]
[403955287,1769691043317,-59869.08143918,0.00016519,2]
[403955288,1769691043328,-672.81,0.0001652,2]
[403955289,1769691043336,-500.0,0.0001652,2]
[403955290,1769691043345,-500.0,0.0001652,2]
[403955291,1769691043355,-1082.12,0.0001652,2]
[403955292,1769691043369,-500.0,0.0001652,2]
[403955293,1769691043379,-500.0,0.0001652,2]
[403955294,1769691043390,-500.0,0.0001652,2]
[403955295,1769691043400,-500.0,0.0001652,2]
[403955296,1769691043409,-1000.37082769,0.00016521,2]
[403955297,1769691043418,-1000.0,0.00016521,2]
[403955298,1769691043428,-541.13801324,0.00016521,2]
[403955299,1769691043438,-503.09870012,0.00016521,2]
[403955300,1769691043447,-1000.0,0.00016521,2]
[403955301,1769691043456,-505.52548547,0.00016521,2]
[403955302,1769691043465,-1000.0,0.00016521,2]
[403955303,1769691043474,-1000.0,0.00016521,2]
[403955304,1769691043483,-504.68661395,0.00016521,2]
[403955305,1769691043492,-1000.0,0.00016521,2]
[403955317,1769691043707,-1000.0,0.00016521,2]
[403955318,1769691043729,-1000.0,0.00016521,2]
[403955319,1769691043739,-1000.0,0.00016521,2]
[403955320,1769691043748,-401.40440984,0.00016521,2]
[403955321,1769691043757,-1000.0,0.00016521,2]
[403955322,1769691043766,-156.35277516,0.00016521,2]
[403955323,1769691043776,-1000.0,0.00016521,2]
[403955324,1769691043786,-1000.0,0.00016521,2]
[403955325,1769691043795,-1000.0,0.00016521,2]
[403955326,1769691043804,-1000.0,0.00016521,2]
[403955327,1769691043814,-1000.0,0.00016521,2]
[403955328,1769691043823,-1000.0,0.00016521,2]
[403955329,1769691043832,-1000.0,0.00016521,2]
[403955330,1769691043841,-850.06999106,0.00016521,2]
[403955331,1769691043851,-1000.0,0.00016521,2]
[403955332,1769691043860,-1000.0,0.00016521,2]
[403955333,1769691043869,-1000.0,0.00016521,2]
[403955334,1769691043878,-459.4735822,0.00016521,2]
[403955335,1769691043888,-368.14,0.00016544,2]
[403955336,1769691043898,-165.61,0.00016546,2]
[403955337,1769691043907,-261.76,0.0001655,2]
[403955338,1769691043917,-2252.6,0.00016596,2]
[403955339,1769691043926,-500.0,0.00016609,2]
[403955340,1769691043935,-620.13152007,0.00016609,2]
[403955341,1769691043944,-500.0,0.00016609,2]
[403955342,1769691043954,-587.0,0.00016633,2]
[403955343,1769691043963,-448.0,0.00016634,2]
[403955344,1769691043972,-4385.73705089,0.00016746,2]
[403955345,1769691043982,-2351.0,0.00016765,2]
[403955346,1769691043991,-30859.55,0.00016806,2]
[403955347,1769691044002,-150.0,0.00016816,2]
[403955348,1769691044011,-150.0,0.00016816,2]
[403955349,1769691044021,-500.0,0.00016816,2]
[403955350,1769691044031,-153.23607155,0.00016816,2]
[403955351,1769691044040,-150.0,0.00016816,2]
[403955352,1769691044050,-150.89317247,0.00016816,2]
[403955353,1769691044059,-150.0,0.00016816,2]
[403955354,1769691044069,-151.38299639,0.00016816,2]
[403955355,1769691044078,-150.94007099,0.00016816,2]
[403955356,1769691044088,-500.0,0.00016816,2]
[403955357,1769691044097,-150.0,0.00016816,2]
[403955358,1769691044107,-155.08275529,0.00016816,2]
[403955359,1769691044116,-496.0,0.00016816,2]
[403955360,1769691044125,-500.0,0.00016816,2]
[403955361,1769691044135,-150.0,0.00016816,2]
[403955362,1769691044143,-150.0,0.00016816,2]
[403955363,1769691044152,-500.0,0.00016816,2]
[403955364,1769691044162,-500.0,0.00016816,2]
[403955365,1769691044171,-150.0,0.00016816,2]
[403955366,1769691044180,-500.0,0.00016816,2]
[403955367,1769691044190,-500.0,0.00016816,2]
[403955368,1769691044199,-500.0,0.00016816,2]
[403955369,1769691044209,-150.0,0.00016816,2]
[403955370,1769691044218,-597.0,0.00016816,2]
[403955371,1769691044227,-150.0,0.00016816,2]
[403955372,1769691044236,-500.0,0.00016816,2]
[403955373,1769691044247,-500.0,0.00016816,2]
[403955374,1769691044256,-500.0,0.00016816,2]
[403955375,1769691044265,-165.72537453,0.00016816,2]
[403955376,1769691044275,-150.0,0.00016816,2]
[403955377,1769691044285,-500.0,0.00016816,2]
[403955378,1769691044294,-500.0,0.00016816,2]
[403955379,1769691044303,-500.0,0.00016816,2]
[403955380,1769691044312,-150.0,0.00016816,2]
[403955381,1769691044322,-431.0,0.00016816,2]
[403955382,1769691044331,-500.0,0.00016816,2]
[403955383,1769691044341,-150.0,0.00016816,2]
[403955384,1769691044351,-2914.68433174,0.0001683,2]
[403955385,1769691044364,-7691.89806629,0.0001683,2]
[403955386,1769691044374,-165.59,0.00016868,2]
[403955387,1769691044383,-2252.6,0.0001687,2]
[403955388,1769691044393,-209.0686946,0.00016871,2]
[403955389,1769691044404,-150.0,0.00016871,2]
[403955390,1769691044413,-500.0,0.00016871,2]
[403955391,1769691044422,-153.98209537,0.00016871,2]
[403955392,1769691044433,-153.57030056,0.00016871,2]
[403955393,1769691044442,-500.0,0.00016871,2]
[403955394,1769691044451,-204.59716346,0.00016871,2]
[403955395,1769691044461,-496.0,0.00016871,2]
[403955396,1769691044472,-500.0,0.00016871,2]
[403955397,1769691044481,-150.0,0.00016871,2]
[403955398,1769691044491,-150.0,0.00016871,2]
[403955399,1769691044501,-500.0,0.00016871,2]
[403955400,1769691044510,-500.0,0.00016871,2]
[403955401,1769691044520,-150.0,0.00016871,2]
[403955402,1769691044529,-500.0,0.00016871,2]
[403955403,1769691044537,-500.0,0.00016871,2]
[403955404,1769691044546,-500.0,0.00016871,2]
[403955405,1769691044556,-150.0,0.00016871,2]
[403955406,1769691044565,-597.0,0.00016871,2]
[403955407,1769691044574,-150.0,0.00016871,2]
[403955408,1769691044583,-500.0,0.00016871,2]
[403955409,1769691044593,-500.0,0.00016871,2]
[403955410,1769691044602,-500.0,0.00016871,2]
[403955411,1769691044612,-500.0,0.00016871,2]
[403955412,1769691044621,-500.0,0.00016871,2]
[403955413,1769691044631,-500.0,0.00016871,2]
[403955414,1769691044640,-431.0,0.00016871,2]
[403955415,1769691044649,-500.0,0.00016871,2]
[403955416,1769691044659,-161.0,0.000169,2]
[403955417,1769691044668,-161.0,0.000169,2]
[403955418,1769691044677,-210.58495548,0.00016926,2]
[403955419,1769691044686,-500.0,0.00016926,2]
[403955420,1769691044696,-259.23494568,0.00016926,2]
[403955421,1769691044705,-496.0,0.00016926,2]
[403955422,1769691044714,-500.0,0.00016926,2]
[403955423,1769691044724,-150.0,0.00016926,2]
[403955424,1769691044733,-150.0,0.00016926,2]
[403955425,1769691044742,-500.0,0.00016926,2]
[403955426,1769691044752,-500.0,0.00016926,2]
[403955427,1769691044761,-277.46058828,0.00016926,2]
[403955428,1769691044771,-500.0,0.00016926,2]
[403955429,1769691044780,-547.35480279,0.00016926,2]
[403955430,1769691044790,-500.0,0.00016926,2]
[403955431,1769691044799,-150.0,0.00016926,2]
[403955432,1769691044809,-597.0,0.00016926,2]
[403955433,1769691044819,-150.0,0.00016926,2]
[403955434,1769691044829,-500.0,0.00016926,2]
[403955435,1769691044839,-500.0,0.00016926,2]
[403955436,1769691044848,-500.0,0.00016926,2]
[403955437,1769691044858,-500.0,0.00016926,2]
[403955438,1769691044867,-500.0,0.00016926,2]
[403955439,1769691044877,-500.0,0.00016926,2]
[403955440,1769691044888,-431.0,0.00016926,2]
[403955441,1769691044898,-500.0,0.00016926,2]
[403955442,1769691044908,-185.35,0.00016933,2]
[403955443,1769691044918,-930.4789687,0.00016935,2]
[403955444,1769691044928,-500.0,0.0001694,2]
[403955445,1769691044937,-500.54,0.0001694,2]
[403955446,1769691044947,-672.81,0.00016966,2]
[403955447,1769691044956,-630.02244464,0.00016966,2]
[403955448,1769691044965,-500.0,0.00016966,2]
[403955449,1769691044974,-1082.12,0.00016966,2]
[403955450,1769691044984,-500.0,0.00016966,2]
[403955451,1769691044994,-500.0,0.00016966,2]
[403955452,1769691045003,-500.0,0.00016966,2]
[403955453,1769691045013,-228.68300152,0.00016966,2]
[403955454,1769691045023,-59869.08143918,0.00016979,2]
[403955455,1769691045032,-612.28691329,0.0001698,2]
[403955456,1769691045041,-496.0,0.0001698,2]
[403955457,1769691045051,-500.0,0.0001698,2]
[403955458,1769691045060,-150.0,0.0001698,2]
[403955459,1769691045072,-150.0,0.0001698,2]
[403955460,1769691045082,-500.0,0.0001698,2]
[403955461,1769691045091,-153.50697383,0.0001698,2]
[403955462,1769691045100,-623.21613332,0.0001698,2]
[403955463,1769691045109,-500.0,0.0001698,2]
[403955464,1769691045119,-176.88485057,0.0001698,2]
[403955465,1769691045128,-597.0,0.0001698,2]
[403955466,1769691045137,-240.49848305,0.0001698,2]
[403955467,1769691045146,-500.0,0.0001698,2]
[403955468,1769691045155,-350.34724417,0.0001698,2]
[403955469,1769691045165,-500.0,0.0001698,2]
[403955470,1769691045175,-500.0,0.0001698,2]
[403955471,1769691045184,-500.0,0.0001698,2]
[403955472,1769691045195,-500.0,0.0001698,2]
[403955473,1769691045204,-431.0,0.0001698,2]
[403955474,1769691045213,-500.0,0.0001698,2]
[403955475,1769691045223,-500.0,0.00016984,2]
[403955476,1769691045232,-250.0,0.00017,2]
[403955477,1769691045242,-10000.0,0.00017,2]
[403955478,1769691045252,-496.0,0.00017035,2]
[403955479,1769691045261,-500.0,0.00017035,2]
[403955480,1769691045271,-290.22964713,0.00017035,2]
[403955481,1769691045280,-500.0,0.00017035,2]
[403955482,1769691045291,-252.34395111,0.00017035,2]
[403955483,1769691045300,-500.0,0.00017035,2]
[403955484,1769691045309,-597.0,0.00017035,2]
[403955485,1769691045318,-500.0,0.00017035,2]
[403955486,1769691045329,-500.0,0.00017035,2]
[403955487,1769691045340,-500.0,0.00017035,2]
[403955488,1769691045351,-500.0,0.00017035,2]
[403955489,1769691045363,-500.0,0.00017035,2]
[403955490,1769691045375,-431.0,0.00017035,2]
[403955491,1769691045384,-500.0,0.00017035,2]
[403955492,1769691045395,-500.0,0.00017068,2]
[403955493,1769691045404,-500.0,0.00017068,2]
[403955494,1769691045413,-506.79391477,0.00017068,2]
[403955495,1769691045423,-1501.11024626,0.00017068,2]
[403955496,1769691045433,-1500.0,0.00017068,2]
[403955497,1769691045442,-1500.0,0.00017068,2]
[403955498,1769691045452,-1500.0,0.00017068,2]
[403955499,1769691045461,-182.21713828,0.00017068,2]
[403955500,1769691045471,-1345.01744062,0.00017068,2]
[403955501,1769691045480,-447.99725278,0.00017068,2]
[403955502,1769691045490,-1500.0,0.00017068,2]
[403955503,1769691045499,-1500.8130636,0.00017068,2]
[403955504,1769691045508,-1500.0,0.00017068,2]
[403955505,1769691045518,-1001.84097884,0.00017068,2]
[403955506,1769691045529,-1500.0,0.00017068,2]
[403955507,1769691045541,-1500.0,0.00017068,2]
[403955508,1769691045551,-1500.0,0.00017068,2]
[403955509,1769691045560,-1502.1314458,0.00017068,2]
[403955510,1769691045569,-501.80313888,0.00017068,2]
[403955511,1769691045578,-1500.0,0.00017068,2]
[403955512,1769691045588,-496.0,0.0001709,2]
[403955513,1769691045597,-500.0,0.0001709,2]
[403955514,1769691045606,-500.0,0.0001709,2]
[403955515,1769691045615,-500.0,0.0001709,2]
[403955516,1769691045625,-597.0,0.0001709,2]
[403955517,1769691045634,-374.0,0.0001709,2]
[403955518,1769691045645,-500.0,0.0001709,2]
[403955519,1769691045655,-500.0,0.0001709,2]
[403955520,1769691045665,-500.0,0.0001709,2]
[403955521,1769691045674,-500.0,0.0001709,2]
[403955522,1769691045683,-431.0,0.0001709,2]
[403955523,1769691045692,-500.0,0.0001709,2]
[403955524,1769691045702,-324.02907155,0.00017099,2]
[403955525,1769691045711,-578.20924308,0.00017107,2]
[403955526,1769691045720,-250.0,0.00017107,2]
[403955527,1769691045729,-209.40437684,0.00017107,2]
[403955530,1769691045739,-250.0,0.00017107,2]
[403955531,1769691045748,-250.0,0.00017107,2]
[403955533,1769691045758,-250.0,0.00017107,2]
[403955534,1769691045767,-250.0,0.00017107,2]
[403955535,1769691045777,-209.40437684,0.00017107,2]
[403955536,1769691045788,-250.0,0.00017107,2]
[403955537,1769691045798,-250.0,0.00017107,2]
[403955538,1769691045807,-250.0,0.00017107,2]
[403955540,1769691045818,-250.0,0.00017107,2]
[403955541,1769691045827,-250.0,0.00017107,2]
[403955542,1769691045836,-250.0,0.00017107,2]
[403955543,1769691045846,-250.0,0.00017107,2]
[403955544,1769691045855,-266.88383045,0.00017107,2]
[403955545,1769691045864,-250.0,0.00017107,2]
[403955546,1769691045873,-250.0,0.00017107,2]
[403955547,1769691045883,-854.2589148,0.00017107,2]
[403955548,1769691045892,-250.0,0.00017107,2]
[403955549,1769691045901,-250.0,0.00017107,2]
[403955550,1769691045911,-174.61919141,0.00017107,2]
[403955551,1769691045920,-500.0,0.00017107,2]
[403955552,1769691045930,-500.0,0.00017107,2]
[403955553,1769691045939,-500.0,0.00017107,2]
[403955554,1769691045947,-500.0,0.00017107,2]
[403955555,1769691045956,-500.0,0.00017107,2]
[403955556,1769691045966,-500.0,0.00017107,2]
[403955557,1769691045975,-500.0,0.00017107,2]
[403955558,1769691045984,-500.0,0.00017107,2]
[403955559,1769691045993,-500.0,0.00017107,2]
[403955560,1769691046003,-500.0,0.00017107,2]
[403955561,1769691046085,-500.0,0.00017107,2]
[403955562,1769691046095,-500.0,0.00017107,2]
[403955563,1769691046104,-500.0,0.00017107,2]
[403955564,1769691046113,-500.0,0.00017107,2]
[403955565,1769691046123,-209.40437684,0.00017107,2]
[403955566,1769691046132,-500.0,0.00017107,2]
[403955567,1769691046141,-500.0,0.00017107,2]
[403955568,1769691046151,-500.0,0.00017107,2]
[403955569,1769691046160,-500.0,0.00017107,2]
[403955570,1769691046168,-500.0,0.00017107,2]
[403955571,1769691046177,-500.0,0.00017107,2]
[403955572,1769691046187,-500.0,0.00017107,2]
[403955573,1769691046197,-500.0,0.00017107,2]
[403955574,1769691046206,-500.0,0.00017107,2]
[403955575,1769691046214,-322.6107,0.00017107,2]
[403955576,1769691046223,-500.0,0.00017107,2]
[403955577,1769691046232,-250.0,0.00017107,2]
[403955578,1769691046242,-500.0,0.00017107,2]
[403955579,1769691046251,-250.0,0.00017107,2]
[403955580,1769691046260,-500.0,0.00017107,2]
[403955581,1769691046270,-250.0,0.00017107,2]
[403955582,1769691046279,-500.0,0.00017107,2]
[403955583,1769691046288,-250.0,0.00017107,2]
[403955584,1769691046297,-500.0,0.00017107,2]
[403955585,1769691046307,-250.0,0.00017107,2]
[403955586,1769691046316,-500.0,0.00017107,2]
[403955587,1769691046325,-250.0,0.00017107,2]
[403955588,1769691046334,-500.0,0.00017107,2]
[403955589,1769691046343,-250.0,0.00017107,2]
[403955590,1769691046352,-500.0,0.00017107,2]
[403955591,1769691046365,-250.0,0.00017107,2]
[403955592,1769691046374,-1000.0,0.00017107,2]
[403955593,1769691046384,-500.0,0.00017107,2]
[403955594,1769691046393,-500.0,0.00017107,2]
[403955595,1769691046402,-250.0,0.00017107,2]
[403955596,1769691046414,-1000.0,0.00017107,2]
[403955597,1769691046423,-500.0,0.00017107,2]
[403955598,1769691046434,-500.0,0.00017107,2]
[403955599,1769691046443,-250.0,0.00017107,2]
[403955600,1769691046452,-1000.0,0.00017107,2]
[403955601,1769691046461,-500.0,0.00017107,2]
[403955602,1769691046470,-250.0,0.00017107,2]
[403955603,1769691046479,-1000.0,0.00017107,2]
[403955604,1769691046488,-500.0,0.00017107,2]
[403955605,1769691046498,-151.0,0.00017107,2]
[403955606,1769691046507,-1000.0,0.00017107,2]
[403955607,1769691046516,-500.0,0.00017107,2]
[403955608,1769691046526,-1000.0,0.00017107,2]
[403955609,1769691046535,-500.0,0.00017107,2]
[403955610,1769691046544,-1000.0,0.00017107,2]
[403955611,1769691046552,-500.0,0.00017107,2]
[403955612,1769691046561,-1000.0,0.00017107,2]
[403955613,1769691046570,-500.0,0.00017107,2]
[403955614,1769691046579,-1000.0,0.00017107,2]
[403955615,1769691046588,-500.0,0.00017107,2]
[403955616,1769691046597,-1000.0,0.00017107,2]
[403955617,1769691046607,-500.0,0.00017107,2]
[403955618,1769691046615,-1000.0,0.00017107,2]
[403955619,1769691046624,-500.0,0.00017107,2]
[403955620,1769691046633,-250.0,0.00017107,2]
[403955621,1769691046642,-250.0,0.00017107,2]
[403955622,1769691046651,-250.0,0.00017107,2]
[403955623,1769691046660,-250.0,0.00017107,2]
[403955624,1769691046669,-250.0,0.00017107,2]
[403955625,1769691046678,-500.0,0.00017107,2]
[403955626,1769691046687,-250.0,0.00017107,2]
[403955627,1769691046697,-500.0,0.00017107,2]
[403955628,1769691046706,-250.0,0.00017107,2]
[403955629,1769691046715,-500.0,0.00017107,2]
[403955630,1769691046724,-721.12765535,0.00017107,2]
[403955631,1769691046734,-250.0,0.00017107,2]
[403955632,1769691046743,-500.0,0.00017107,2]
[403955633,1769691046752,-250.0,0.00017107,2]
[403955634,1769691046761,-500.0,0.00017107,2]
[403955635,1769691046770,-209.40437684,0.00017107,2]
[403955636,1769691046779,-582.77228948,0.00017107,2]
[403955637,1769691046789,-250.0,0.00017107,2]
[403955638,1769691046798,-250.0,0.00017107,2]
[403955639,1769691046807,-250.0,0.00017107,2]
[403955640,1769691046817,-250.0,0.00017107,2]
[403955641,1769691046826,-250.0,0.00017107,2]
[403955642,1769691046836,-250.0,0.00017107,2]
[403955643,1769691046845,-250.0,0.00017107,2]
[403955644,1769691046854,-250.0,0.00017107,2]
[403955645,1769691046863,-250.0,0.00017107,2]
[403955646,1769691046873,-151.0,0.00017107,2]
[403955647,1769691046882,-250.0,0.00017107,2]
[403955648,1769691046892,-250.0,0.00017107,2]
[403955649,1769691046901,-250.0,0.00017107,2]
[403955650,1769691046910,-250.0,0.00017107,2]
[403955651,1769691046919,-500.0,0.00017144,2]
[403955652,1769691046929,-2252.6,0.00017144,2]
[403955653,1769691046938,-496.0,0.00017145,2]
[403955654,1769691046947,-500.0,0.00017145,2]
[403955655,1769691046956,-500.0,0.00017145,2]
[403955656,1769691046965,-500.0,0.00017145,2]
[403955657,1769691046974,-597.0,0.00017145,2]
[403955658,1769691046983,-500.0,0.00017145,2]
[403955659,1769691046992,-500.0,0.00017145,2]
[403955660,1769691047001,-500.0,0.00017145,2]
[403955661,1769691047010,-500.0,0.00017145,2]
[403955662,1769691047020,-431.0,0.00017145,2]
[403955663,1769691047029,-500.0,0.00017145,2]
[403955664,1769691047038,-155.0,0.00017158,2]
[403955665,1769691047048,-217.15233878,0.00017162,2]
[403955666,1769691047057,-1023.81512056,0.00017169,2]
[403955667,1769691047066,-2779.16558709,0.00017169,2]
[403955668,1769691047075,-341.61275203,0.00017169,2]
[403955669,1769691047084,-672.81,0.00017169,2]
[403955670,1769691047094,-500.0,0.00017169,2]
[403955671,1769691047103,-1082.12,0.00017169,2]
[403955672,1769691047112,-500.0,0.00017169,2]
[403955673,1769691047121,-500.0,0.00017169,2]
[403955674,1769691047131,-500.0,0.00017169,2]
[403955675,1769691047142,-368.14,0.00017174,2]
[403955676,1769691047151,-165.61,0.00017177,2]
[403955677,1769691047160,-261.76,0.00017186,2]
[403955678,1769691047169,-1259.68730294,0.00017194,2]
[403955679,1769691047178,-496.0,0.000172,2]
[403955680,1769691047187,-500.0,0.000172,2]
[403955681,1769691047196,-500.0,0.000172,2]
[403955682,1769691047205,-500.0,0.000172,2]
[403955683,1769691047214,-597.0,0.000172,2]
[403955684,1769691047224,-500.0,0.000172,2]
[403955685,1769691047233,-309.30429848,0.000172,2]
[403955686,1769691047242,-500.0,0.000172,2]
[403955687,1769691047252,-500.0,0.000172,2]
[403955688,1769691047261,-431.0,0.000172,2]
[403955689,1769691047270,-500.0,0.000172,2]
[403955690,1769691047279,-225.18697532,0.00017217,2]
[403955691,1769691047288,-496.0,0.00017254,2]
[403955692,1769691047298,-500.0,0.00017254,2]
[403955693,1769691047307,-500.0,0.00017254,2]
[403955694,1769691047316,-500.0,0.00017254,2]
[403955695,1769691047326,-597.0,0.00017254,2]
[403955696,1769691047335,-500.0,0.00017254,2]
[403955697,1769691047344,-500.0,0.00017254,2]
[403955698,1769691047354,-500.0,0.00017254,2]
[403955699,1769691047368,-431.0,0.00017254,2]
[403955700,1769691047377,-500.0,0.00017254,2]
[403955701,1769691047385,-233.51889341,0.00017272,2]
[403955702,1769691047394,-700.49,0.00017299,2]
[403955703,1769691047405,-496.0,0.00017309,2]
[403955704,1769691047414,-500.0,0.00017309,2]
[403955705,1769691047422,-500.0,0.00017309,2]
[403955706,1769691047431,-460.45544005,0.00017309,2]
[403955707,1769691047440,-597.0,0.00017309,2]
[403955708,1769691047448,-500.0,0.00017309,2]
[403955709,1769691047457,-500.0,0.00017309,2]
[403955710,1769691047466,-500.0,0.00017309,2]
[403955711,1769691047474,-431.0,0.00017309,2]
[403955712,1769691047483,-500.0,0.00017309,2]
[403955713,1769691047492,-4385.73705089,0.00017323,2]
[403955714,1769691047501,-150.0,0.00017327,2]
[403955715,1769691047510,-242.15909246,0.00017327,2]
[403955716,1769691047519,-13569.41993874,0.0001733,2]
[403955717,1769691047529,-1206.06233243,0.00017359,2]
[403955718,1769691047538,-496.0,0.00017364,2]
[403955719,1769691047547,-500.0,0.00017364,2]
[403955720,1769691047556,-375.67688444,0.00017364,2]
[403955721,1769691047565,-597.0,0.00017364,2]
[403955722,1769691047574,-500.0,0.00017364,2]
[403955723,1769691047583,-500.0,0.00017364,2]
[403955724,1769691047591,-462.54801825,0.00017364,2]
[403955725,1769691047601,-431.0,0.00017364,2]
[403955726,1769691047610,-500.0,0.00017364,2]
[403955727,1769691047619,-251.11897888,0.00017382,2]
[403955728,1769691047628,-500.0,0.00017399,2]
[403955729,1769691047636,-500.0,0.00017399,2]
[403955730,1769691047645,-500.54,0.00017399,2]
[403955731,1769691047654,-500.0,0.00017399,2]
[403955732,1769691047663,-152.36,0.000174,2]
[403955733,1769691047672,-450.9177481,0.000174,2]
[403955734,1769691047680,-28300.0,0.000174,6]